[Event "NJSK 2018 Jeugd C"]
[Site "Assen, Netherlands"]
[Date "2018.05.01"]
[Round "4.11"]
[White "Albers, Sasa"]
[Black "Roebers, Eline"]
[Result "0-1"]
[TimeControl "40/90m+30sec/move"]
[WhiteElo "1336"]
[BlackElo "1961"]

1. e4 {[%clk 01:30:57]} {[%emt 00:00:03]} c5 {[%clk 01:30:55]} {[%emt
00:00:05]} 2. Nf3 {[%clk 01:31:23]} {[%emt 00:00:05]} Nc6 {[%clk 01:31:16]}
{[%emt 00:00:09]} 3. d4 {[%clk 01:31:45]} {[%emt 00:00:09]} cxd4 {[%clk
01:31:40]} {[%emt 00:00:16]} 4. Nxd4 {[%clk 01:32:09]} {[%emt 00:00:10]} Nf6
{[%clk 01:31:54]} {[%emt 00:00:14]} 5. Nc3 {[%clk 01:31:46]} {[%emt 00:00:39]}
g6 {[%clk 01:31:56]} {[%emt 00:00:28]} 6. f3 {[%clk 01:31:58]} {[%emt
00:00:18]} Bg7 {[%clk 01:31:35]} {[%emt 00:00:52]} 7. Be3 {[%clk 01:32:20]}
{[%emt 00:00:07]} O-O {[%clk 01:31:24]} {[%emt 00:00:41]} 8. Qd2 {[%clk
01:32:47]} {[%emt 00:00:04]} d6 {[%clk 01:30:01]} {[%emt 00:01:53]} 9. O-O-O
{[%clk 01:33:05]} {[%emt 00:00:12]} Bd7 {[%clk 01:29:56]} {[%emt 00:00:35]} 10.
g4 {[%clk 01:32:50]} {[%emt 00:00:45]} a6 {[%clk 01:28:55]} {[%emt 00:01:31]}
11. h4 {[%clk 01:32:16]} {[%emt 00:01:04]} b5 {[%clk 01:28:15]} {[%emt
00:01:10]} 12. h5 {[%clk 01:29:46]} {[%emt 00:03:00]} Qa5 {[%clk 01:26:45]}
{[%emt 00:02:00]} 13. Nb3 {[%clk 01:29:15]} {[%emt 00:01:01]} Qc7 {[%clk
01:24:33]} {[%emt 00:02:41]} 14. hxg6 {[%clk 01:26:39]} {[%emt 00:03:06]} fxg6
{[%clk 01:22:55]} {[%emt 00:02:09]} 15. Bh6 {[%clk 01:26:46]} {[%emt 00:00:23]}
Be6 {[%clk 01:19:20]} {[%emt 00:04:04]} 16. Bxg7 {[%clk 01:26:48]} {[%emt
00:00:27]} Kxg7 {[%clk 01:19:40]} {[%emt 00:00:10]} 17. Qh6+ {[%clk 01:27:04]}
{[%emt 00:00:15]} Kg8 {[%clk 01:19:26]} {[%emt 00:00:44]} 18. g5 {[%clk
01:27:26]} {[%emt 00:00:09]} Nh5 {[%clk 01:19:49]} {[%emt 00:00:07]} 19. Rxh5
{[%clk 01:26:52]} {[%emt 00:01:03]} gxh5 {[%clk 01:19:37]} {[%emt 00:00:41]} 20.
Qxe6+ {[%clk 01:27:13]} {[%emt 00:00:08]} Kh8 {[%clk 01:18:58]} {[%emt
00:01:10]} 21. Nd5 {[%clk 01:25:36]} {[%emt 00:02:06]} Qc8 {[%clk 01:16:52]}
{[%emt 00:02:36]} 22. Qh6 {[%clk 01:25:09]} {[%emt 00:00:57]} Qb7 {[%clk
01:12:13]} {[%emt 00:05:09]} 23. Qxh5 {[%clk 01:13:14]} {[%emt 00:12:24]} a5
{[%clk 01:06:19]} {[%emt 00:06:26]} 24. Bh3 {[%clk 01:10:46]} {[%emt 00:02:58]}
Nd8 {[%clk 01:03:16]} {[%emt 00:03:33]} 25. Nb6 {[%clk 01:02:08]} {[%emt
00:09:08]} Qxb6 {[%clk 00:55:57]} {[%emt 00:07:49]} 26. g6 {[%clk 01:02:20]}
{[%emt 00:00:18]} Qe3+ {[%clk 00:56:14]} {[%emt 00:00:13]} 27. Kb1 {[%clk
01:02:19]} {[%emt 00:00:31]} h6 {[%clk 00:55:58]} {[%emt 00:00:46]} 28. f4
{[%clk 00:55:12]} {[%emt 00:07:37]} Kg7 {[%clk 00:53:01]} {[%emt 00:03:27]} 29.
Qh4 {[%clk 00:52:25]} {[%emt 00:03:17]} Ra7 {[%clk 00:49:17]} {[%emt 00:04:15]}
30. Bf5 {[%clk 00:45:20]} {[%emt 00:07:34]} Nc6 {[%clk 00:45:40]} {[%emt
00:04:07]} 31. Rh1 {[%clk 00:40:23]} {[%emt 00:05:26]} Rh8 {[%clk 00:45:04]}
{[%emt 00:01:07]} 32. Re1 {[%clk 00:39:27]} {[%emt 00:01:25]} Qb6 {[%clk
00:44:19]} {[%emt 00:01:15]} 33. e5 {[%clk 00:37:49]} {[%emt 00:02:08]} dxe5
{[%clk 00:36:19]} {[%emt 00:08:30]} 34. fxe5 {[%clk 00:37:48]} {[%emt
00:00:30]} a4 {[%clk 00:34:53]} {[%emt 00:01:56]} 35. Nc1 {[%clk 00:36:18]}
{[%emt 00:02:00]} a3 {[%clk 00:28:31]} {[%emt 00:06:53]} 36. bxa3 {[%clk
00:34:16]} {[%emt 00:02:31]} Qd4 {[%clk 00:23:29]} {[%emt 00:05:33]} 37. Qg3
{[%clk 00:30:50]} {[%emt 00:03:56]} Na5 {[%clk 00:20:50]} {[%emt 00:03:09]} 38.
Be6 {[%clk 00:28:38]} {[%emt 00:02:42]} Nc4 {[%clk 00:19:49]} {[%emt 00:01:33]}
39. Bxc4 {[%clk 00:28:35]} {[%emt 00:00:32]} bxc4 {[%clk 00:20:12]} {[%emt
00:00:06]} 40. Rf1 {[%clk 00:27:21]} {[%emt 00:01:45]} Rb8+ {[%clk 00:17:11]}
{[%emt 00:03:30]} 41. Nb3 {[%clk 00:27:21]} {[%emt 00:00:30]} cxb3 {[%clk
00:16:14]} {[%emt 00:01:27]} 42. cxb3 {[%clk 00:25:08]} {[%emt 00:02:42]} Rxa3
{[%clk 00:14:33]} {[%emt 00:02:13]} 43. Rf7+ {[%clk 00:21:17]} {[%emt
00:04:20]} Kg8 {[%clk 00:14:55]} {[%emt 00:00:09]} 44. Rf3 {[%clk 00:10:43]}
{[%emt 00:11:04]} Rxa2 {[%clk 00:13:56]} {[%emt 00:01:29]} 45. Rc3 {[%clk
00:09:28]} {[%emt 00:01:44]} Qd2 {[%clk 00:12:58]} {[%emt 00:01:28]} 0-1

[Event "NJSK 2018 Jeugd C"]
[Site "Assen, Netherlands"]
[Date "2018.05.01"]
[Round "4.12"]
[White "Tiggelman, Vincent"]
[Black "Franke, Daniel"]
[Result "0-1"]
[TimeControl "40/90m+30sec/move"]
[WhiteElo "1394"]
[BlackElo "1298"]

1. e4 {[%clk 01:30:53]} {[%emt 00:00:06]} c5 {[%clk 01:31:00]} 2. Nc3 {[%clk
01:31:16]} {[%emt 00:00:07]} Nc6 {[%clk 01:31:22]} {[%emt 00:00:07]} 3. Bc4
{[%clk 01:31:39]} {[%emt 00:00:07]} Nf6 {[%clk 01:30:39]} {[%emt 00:01:13]} 4.
d3 {[%clk 01:31:57]} {[%emt 00:00:12]} e6 {[%clk 01:30:27]} {[%emt 00:00:42]} 5.
Bg5 {[%clk 01:31:52]} {[%emt 00:00:33]} Be7 {[%clk 01:30:20]} {[%emt 00:00:38]}
6. f4 {[%clk 01:22:28]} {[%emt 00:09:54]} d5 {[%clk 01:26:29]} {[%emt
00:04:22]} 7. Bb3 {[%clk 01:18:16]} {[%emt 00:04:42]} d4 {[%clk 01:24:04]}
{[%emt 00:02:55]} 8. Nce2 {[%clk 01:18:31]} {[%emt 00:00:14]} Ng4 {[%clk
01:21:18]} {[%emt 00:03:16]} 9. Bxe7 {[%clk 01:16:17]} {[%emt 00:02:44]} Qxe7
{[%clk 01:21:38]} {[%emt 00:00:11]} 10. Ng3 {[%clk 01:13:26]} {[%emt 00:03:20]}
Ne3 {[%clk 01:20:28]} {[%emt 00:01:41]} 11. Qf3 {[%clk 01:08:47]} {[%emt
00:05:09]} c4 {[%clk 01:12:50]} {[%emt 00:08:08]} 12. dxc4 {[%clk 01:06:21]}
{[%emt 00:02:55]} Qb4+ {[%clk 01:12:43]} {[%emt 00:00:38]} 13. Ke2 {[%clk
00:45:32]} {[%emt 00:21:19]} Nxc4 {[%clk 01:12:11]} {[%emt 00:01:03]} 14. Bxc4
{[%clk 00:44:35]} {[%emt 00:01:26]} Qxc4+ {[%clk 01:12:28]} {[%emt 00:00:14]}
15. Qd3 {[%clk 00:44:51]} {[%emt 00:00:13]} Qxd3+ {[%clk 01:11:49]} {[%emt
00:01:09]} 16. Kxd3 {[%clk 00:45:15]} {[%emt 00:00:06]} Nb4+ {[%clk 01:12:09]}
{[%emt 00:00:11]} 17. Kd2 {[%clk 00:45:15]} {[%emt 00:00:31]} O-O {[%clk
01:11:29]} {[%emt 00:01:09]} 18. Nf3 {[%clk 00:44:06]} {[%emt 00:01:38]} Rd8
{[%clk 01:11:05]} {[%emt 00:00:55]} 19. a3 {[%clk 00:44:01]} {[%emt 00:00:35]}
Nc6 {[%clk 01:10:24]} {[%emt 00:01:12]} 20. Ne2 {[%clk 00:42:18]} {[%emt
00:02:11]} f6 {[%clk 01:10:35]} {[%emt 00:00:20]} 21. Rad1 {[%clk 00:41:36]}
{[%emt 00:01:11]} e5 {[%clk 01:08:54]} {[%emt 00:02:10]} 22. Kc1 {[%clk
00:35:23]} {[%emt 00:06:44]} Be6 {[%clk 01:07:01]} {[%emt 00:02:23]} 23. b3
{[%clk 00:34:51]} {[%emt 00:01:02]} Rdc8 {[%clk 01:06:04]} {[%emt 00:01:26]} 24.
Kb2 {[%clk 00:34:01]} {[%emt 00:01:21]} a5 {[%clk 01:03:38]} {[%emt 00:02:56]}
25. g3 {[%clk 00:30:00]} {[%emt 00:04:30]} a4 {[%clk 01:03:24]} {[%emt
00:00:45]} 26. b4 {[%clk 00:29:10]} {[%emt 00:01:20]} Nd8 {[%clk 01:02:40]}
{[%emt 00:03:55]} 27. fxe5 {[%clk 00:27:14]} {[%emt 00:04:16]} Bg4 {[%clk
01:02:18]} {[%emt 00:00:51]} 28. Nexd4 {[%clk 00:16:01]} {[%emt 00:11:43]} fxe5
{[%clk 01:00:56]} {[%emt 00:01:52]} 29. h3 {[%clk 00:15:43]} {[%emt 00:00:48]}
Bh5 {[%clk 01:01:13]} {[%emt 00:00:13]} 30. g4 {[%clk 00:15:42]} {[%emt
00:00:32]} Bg6 {[%clk 01:01:09]} {[%emt 00:00:34]} 31. Nf5 {[%clk 00:14:51]}
{[%emt 00:01:15]} Bxf5 {[%clk 00:58:43]} {[%emt 00:03:03]} 32. gxf5 {[%clk
00:14:26]} {[%emt 00:00:53]} Rc4 {[%clk 00:58:04]} {[%emt 00:01:09]} 33. Rhe1
{[%clk 00:12:43]} {[%emt 00:02:08]} Nf7 {[%clk 00:56:06]} {[%emt 00:02:34]} 34.
Rd7 {[%clk 00:12:07]} {[%emt 00:01:04]} Rac8 {[%clk 00:56:04]} {[%emt
00:00:33]} 35. Re2 {[%clk 00:12:08]} {[%emt 00:00:29]} R8c7 {[%clk 00:55:26]}
{[%emt 00:01:10]} 36. Rxc7 {[%clk 00:12:11]} {[%emt 00:00:27]} Rxc7 {[%clk
00:55:47]} {[%emt 00:00:09]} 37. Re3 {[%clk 00:11:39]} {[%emt 00:01:01]} Nd6
{[%clk 00:51:49]} {[%emt 00:04:28]} 38. Re2 {[%clk 00:06:53]} {[%emt 00:05:16]}
Nc4+ {[%clk 00:51:19]} {[%emt 00:01:00]} 39. Ka2 {[%clk 00:06:30]} {[%emt
00:00:53]} Rd7 {[%clk 00:50:21]} {[%emt 00:01:28]} 40. h4 {[%clk 00:05:13]}
{[%emt 00:01:46]} Rd1 {[%clk 00:49:38]} {[%emt 00:01:14]} 41. Re1 {[%clk
00:04:26]} {[%emt 00:01:17]} Rxe1 {[%clk 00:42:16]} {[%emt 00:07:52]} 42. Nxe1
{[%clk 00:04:34]} {[%emt 00:00:21]} Nd2 {[%clk 00:42:31]} {[%emt 00:00:15]} 43.
Nd3 {[%clk 00:00:52]} {[%emt 00:04:13]} Nc4 {[%clk 00:42:24]} {[%emt 00:00:37]}
44. Nc5 {[%clk 00:00:43]} {[%emt 00:00:39]} b5 {[%clk 00:41:59]} {[%emt
00:00:55]} 45. Ne6 {[%clk 00:00:49]} {[%emt 00:00:23]} Nd6 {[%clk 00:41:29]}
{[%emt 00:01:00]} 46. Nc5 {[%clk 00:00:40]} {[%emt 00:00:39]} Kf7 {[%clk
00:41:30]} {[%emt 00:00:29]} 47. Kb2 {[%clk 00:00:34]} {[%emt 00:00:37]} Nc4+
{[%clk 00:41:41]} {[%emt 00:00:19]} 48. Ka2 {[%clk 00:00:38]} {[%emt 00:00:26]}
g6 {[%clk 00:40:47]} {[%emt 00:01:24]} 49. fxg6+ {[%clk 00:00:31]} {[%emt
00:00:36]} Kxg6 {[%clk 00:41:07]} {[%emt 00:00:11]} 50. Ne6 {[%clk 00:00:35]}
{[%emt 00:00:26]} Kh5 {[%clk 00:40:56]} {[%emt 00:00:40]} 51. Nc7 {[%clk
00:00:41]} {[%emt 00:00:24]} Nd6 {[%clk 00:41:04]} {[%emt 00:00:23]} 0-1

[Event "NJSK 2018 Jeugd C"]
[Site "Assen, Netherlands"]
[Date "2018.05.02"]
[Round "5.1"]
[White "Elgersma, Onno"]
[Black "Van Foreest, Machteld"]
[Result "1/2-1/2"]
[TimeControl "40/90m+30sec/move"]
[WhiteElo "2060"]
[BlackElo "2132"]

1. e4 {[%clk 01:30:57]} {[%emt 00:00:01]} e5 {[%clk 01:30:58]} {[%emt
00:00:04]} 2. Nf3 {[%clk 01:31:22]} {[%emt 00:00:05]} Nc6 {[%clk 01:31:25]}
{[%emt 00:00:03]} 3. d4 {[%clk 01:31:41]} {[%emt 00:00:10]} exd4 {[%clk
01:31:51]} {[%emt 00:00:04]} 4. Nxd4 {[%clk 01:32:08]} {[%emt 00:00:03]} Nf6
{[%clk 01:32:14]} {[%emt 00:00:08]} 5. Nxc6 {[%clk 01:32:27]} {[%emt 00:00:11]}
bxc6 {[%clk 01:32:40]} {[%emt 00:00:03]} 6. e5 {[%clk 01:32:47]} {[%emt
00:00:10]} Qe7 {[%clk 01:33:06]} {[%emt 00:00:04]} 7. Qe2 {[%clk 01:33:13]}
{[%emt 00:00:04]} Nd5 {[%clk 01:33:32]} {[%emt 00:00:04]} 8. h4 {[%clk
01:33:33]} {[%emt 00:00:10]} Rb8 {[%clk 01:17:32]} {[%emt 00:16:31]} 9. c4
{[%clk 01:21:16]} {[%emt 00:12:47]} Ba6 {[%clk 01:09:08]} {[%emt 00:08:54]} 10.
b3 {[%clk 01:03:02]} {[%emt 00:18:43]} g6 {[%clk 01:04:28]} {[%emt 00:05:10]}
11. Bg5 {[%clk 00:56:09]} {[%emt 00:07:23]} Qb4+ {[%clk 01:04:34]} {[%emt
00:00:25]} 12. Bd2 {[%clk 00:53:16]} {[%emt 00:03:23]} Qe7 {[%clk 01:03:13]}
{[%emt 00:01:50]} 13. Bg5 {[%clk 00:29:39]} {[%emt 00:24:06]} Qb4+ {[%clk
01:02:20]} {[%emt 00:01:24]} 1/2-1/2

[Event "NJSK 2018 Jeugd C"]
[Site "Assen, Netherlands"]
[Date "2018.05.02"]
[Round "5.2"]
[White "Kutchoukov, Daniel"]
[Black "Shakhverdian, William"]
[Result "1-0"]
[TimeControl "40/90m+30sec/move"]
[WhiteElo "1902"]
[BlackElo "1777"]

1. e4 {[%clk 01:30:59]} {[%emt 00:00:01]} e5 {[%clk 01:30:56]} {[%emt
00:00:04]} 2. Nf3 {[%clk 01:31:25]} {[%emt 00:00:04]} Nc6 {[%clk 01:31:10]}
{[%emt 00:00:16]} 3. Nc3 {[%clk 01:31:51]} {[%emt 00:00:05]} Nf6 {[%clk
01:31:28]} {[%emt 00:00:11]} 4. Be2 {[%clk 01:32:17]} {[%emt 00:00:04]} d5
{[%clk 01:29:48]} {[%emt 00:02:10]} 5. exd5 {[%clk 01:32:36]} {[%emt 00:00:11]}
Nxd5 {[%clk 01:30:13]} {[%emt 00:00:04]} 6. O-O {[%clk 01:32:15]} {[%emt
00:00:52]} Nxc3 {[%clk 01:29:36]} {[%emt 00:01:07]} 7. bxc3 {[%clk 01:32:37]}
{[%emt 00:00:07]} Bd6 {[%clk 01:29:47]} {[%emt 00:00:19]} 8. d4 {[%clk
01:23:52]} {[%emt 00:09:15]} exd4 {[%clk 01:23:47]} {[%emt 00:06:30]} 9. cxd4
{[%clk 01:23:31]} {[%emt 00:00:51]} O-O {[%clk 01:24:12]} {[%emt 00:00:05]} 10.
Rb1 {[%clk 01:20:55]} {[%emt 00:03:06]} Rb8 {[%clk 01:23:48]} {[%emt 00:00:53]}
11. c4 {[%clk 01:12:00]} {[%emt 00:09:25]} Bg4 {[%clk 01:21:41]} {[%emt
00:02:37]} 12. Be3 {[%clk 01:09:36]} {[%emt 00:02:54]} b6 {[%clk 01:16:40]}
{[%emt 00:05:32]} 13. h3 {[%clk 00:57:50]} {[%emt 00:12:16]} Bxf3 {[%clk
01:14:02]} {[%emt 00:03:08]} 14. Bxf3 {[%clk 00:57:55]} {[%emt 00:00:25]} Ne7
{[%clk 01:14:14]} {[%emt 00:00:18]} 15. c5 {[%clk 00:53:06]} {[%emt 00:05:19]}
bxc5 {[%clk 01:14:39]} {[%emt 00:00:04]} 16. dxc5 {[%clk 00:53:28]} {[%emt
00:00:08]} Be5 {[%clk 01:13:20]} {[%emt 00:01:48]} 17. c6 {[%clk 00:40:36]}
{[%emt 00:13:23]} Qxd1 {[%clk 01:09:08]} {[%emt 00:04:42]} 18. Rfxd1 {[%clk
00:40:47]} {[%emt 00:00:19]} Nf5 {[%clk 00:57:14]} {[%emt 00:12:24]} 19. Bxa7
{[%clk 00:36:23]} {[%emt 00:04:54]} Ra8 {[%clk 00:57:31]} {[%emt 00:00:13]} 20.
Bc5 {[%clk 00:30:26]} {[%emt 00:06:27]} Bd6 {[%clk 00:57:14]} {[%emt 00:00:48]}
21. Bxd6 {[%clk 00:26:33]} {[%emt 00:04:23]} Nxd6 {[%clk 00:57:34]} {[%emt
00:00:08]} 22. Ra1 {[%clk 00:14:18]} {[%emt 00:12:46]} Ra3 {[%clk 00:57:25]}
{[%emt 00:00:39]} 23. Bd5 {[%clk 00:13:36]} {[%emt 00:01:12]} Rfa8 {[%clk
00:55:47]} {[%emt 00:02:08]} 24. Rab1 {[%clk 00:12:20]} {[%emt 00:01:47]} R3a5
{[%clk 00:55:38]} {[%emt 00:00:38]} 25. Bb3 {[%clk 00:11:07]} {[%emt 00:01:43]}
Kf8 {[%clk 00:51:59]} {[%emt 00:04:09]} 26. Rd5 {[%clk 00:11:32]} {[%emt
00:00:06]} Rxd5 {[%clk 00:51:56]} {[%emt 00:00:33]} 27. Bxd5 {[%clk 00:12:00]}
{[%emt 00:00:01]} Ra5 {[%clk 00:52:20]} {[%emt 00:00:06]} 28. Rd1 {[%clk
00:10:09]} {[%emt 00:02:21]} Ke7 {[%clk 00:47:42]} {[%emt 00:05:08]} 29. Rd2
{[%clk 00:09:51]} {[%emt 00:00:49]} Rc5 {[%clk 00:46:58]} {[%emt 00:01:13]} 30.
Bf3 {[%clk 00:08:51]} {[%emt 00:01:31]} Rc1+ {[%clk 00:44:38]} {[%emt
00:02:50]} 31. Kh2 {[%clk 00:08:38]} {[%emt 00:00:42]} Rc5 {[%clk 00:42:43]}
{[%emt 00:02:25]} 32. Kg3 {[%clk 00:07:53]} {[%emt 00:01:15]} Rg5+ {[%clk
00:40:58]} {[%emt 00:02:15]} 33. Kf4 {[%clk 00:05:36]} {[%emt 00:02:47]} Rf5+
{[%clk 00:41:13]} {[%emt 00:00:14]} 34. Kg4 {[%clk 00:05:59]} {[%emt 00:00:09]}
Rc5 {[%clk 00:41:24]} {[%emt 00:00:18]} 35. Kg3 {[%clk 00:04:09]} {[%emt
00:02:20]} Rg5+ {[%clk 00:41:47]} {[%emt 00:00:07]} 36. Kh2 {[%clk 00:04:28]}
{[%emt 00:00:10]} Rc5 {[%clk 00:42:11]} {[%emt 00:00:06]} 37. g4 {[%clk
00:03:50]} {[%emt 00:01:08]} g5 {[%clk 00:42:13]} {[%emt 00:00:28]} 38. Kg2
{[%clk 00:03:31]} {[%emt 00:00:49]} f6 {[%clk 00:41:36]} {[%emt 00:01:06]} 39.
Kf1 {[%clk 00:03:50]} {[%emt 00:00:11]} Ke6 {[%clk 00:39:53]} {[%emt 00:02:13]}
40. Ke2 {[%clk 00:03:18]} {[%emt 00:01:03]} Nb5 {[%clk 00:37:16]} {[%emt
00:03:06]} 41. Rd7 {[%clk 00:00:47]} {[%emt 00:03:01]} Rc2+ {[%clk 00:37:21]}
{[%emt 00:00:24]} 42. Ke3 {[%clk 00:00:41]} {[%emt 00:00:36]} Rc3+ {[%clk
00:36:34]} {[%emt 00:01:18]} 43. Ke2 {[%clk 00:00:38]} {[%emt 00:00:33]} Rc2+
{[%clk 00:36:45]} {[%emt 00:00:19]} 44. Kf1 {[%clk 00:00:38]} {[%emt 00:00:30]}
h6 {[%clk 00:33:46]} {[%emt 00:03:29]} 45. a4 {[%clk 00:00:34]} {[%emt
00:00:34]} Nc3 {[%clk 00:33:26]} {[%emt 00:00:50]} 46. Rd4 {[%clk 00:00:33]}
{[%emt 00:00:30]} Rc1+ {[%clk 00:29:35]} {[%emt 00:04:21]} 47. Kg2 {[%clk
00:00:55]} {[%emt 00:00:08]} Ra1 {[%clk 00:30:02]} {[%emt 00:00:03]} 48. Rd7
{[%clk 00:01:03]} {[%emt 00:00:22]} Rxa4 {[%clk 00:24:12]} {[%emt 00:06:21]} 49.
Rxc7 {[%clk 00:01:29]} {[%emt 00:00:04]} Nb5 {[%clk 00:17:41]} {[%emt
00:07:01]} 50. Rh7 {[%clk 00:01:40]} {[%emt 00:00:18]} Ra7 {[%clk 00:15:35]}
{[%emt 00:02:34]} 51. Rxh6 {[%clk 00:00:59]} {[%emt 00:01:14]} Rc7 {[%clk
00:15:29]} {[%emt 00:00:35]} 52. h4 {[%clk 00:00:40]} {[%emt 00:00:49]} gxh4
{[%clk 00:15:16]} {[%emt 00:00:43]} 53. g5 {[%clk 00:01:09]} Rg7 {[%clk
00:10:14]} {[%emt 00:05:32]} 54. Rxf6+ {[%clk 00:00:37]} {[%emt 00:01:02]} Ke5
{[%clk 00:10:11]} {[%emt 00:00:33]} 55. Rf8 {[%clk 00:00:35]} {[%emt 00:00:32]}
Rxg5+ {[%clk 00:10:12]} {[%emt 00:00:30]} 56. Kh3 {[%clk 00:01:03]} {[%emt
00:00:01]} Rg7 {[%clk 00:08:47]} {[%emt 00:01:55]} 57. Kxh4 {[%clk 00:01:08]}
{[%emt 00:00:26]} Nd4 {[%clk 00:08:52]} {[%emt 00:00:25]} 58. Re8+ {[%clk
00:00:34]} {[%emt 00:01:03]} Kf5 {[%clk 00:06:24]} {[%emt 00:02:59]} 59. Bd5
{[%clk 00:00:31]} {[%emt 00:00:32]} Rh7 {[%clk 00:03:41]} {[%emt 00:03:11]} 60.
Kg3 {[%clk 00:01:00]} {[%emt 00:00:03]} Rg7+ {[%clk 00:03:59]} {[%emt
00:00:12]} 61. Kh3 {[%clk 00:01:12]} {[%emt 00:00:18]} Rh7 {[%clk 00:04:13]}
{[%emt 00:00:16]} 62. Kg2 {[%clk 00:01:38]} {[%emt 00:00:04]} Rg7+ {[%clk
00:04:32]} {[%emt 00:00:11]} 63. Kf1 {[%clk 00:01:48]} {[%emt 00:00:21]} Rc7
{[%clk 00:04:54]} {[%emt 00:00:08]} 64. Re3 {[%clk 00:01:24]} {[%emt 00:00:53]}
Nc2 {[%clk 00:03:27]} {[%emt 00:01:58]} 65. Be4+ {[%clk 00:01:46]} {[%emt
00:00:08]} Kf4 {[%clk 00:03:45]} {[%emt 00:00:11]} 66. Bxc2 {[%clk 00:02:15]}
{[%emt 00:00:02]} Rxc6 {[%clk 00:04:10]} {[%emt 00:00:05]} 67. Bd3 {[%clk
00:01:46]} {[%emt 00:00:59]} Rc3 {[%clk 00:04:10]} {[%emt 00:00:31]} 68. Kg2
{[%clk 00:02:09]} {[%emt 00:00:06]} Rc7 {[%clk 00:04:32]} {[%emt 00:00:08]} 69.
Re4+ {[%clk 00:02:27]} {[%emt 00:00:12]} Kg5 {[%clk 00:04:55]} {[%emt
00:00:07]} 70. Kg3 {[%clk 00:02:45]} {[%emt 00:00:12]} Rc3 {[%clk 00:05:16]}
{[%emt 00:00:09]} 71. f4+ {[%clk 00:02:57]} {[%emt 00:00:19]} Kf6 {[%clk
00:05:26]} {[%emt 00:00:20]} 72. Re3 {[%clk 00:03:06]} {[%emt 00:00:20]} Ra3
{[%clk 00:05:49]} {[%emt 00:00:07]} 73. Kg4 {[%clk 00:03:24]} {[%emt 00:00:11]}
Rc3 {[%clk 00:05:44]} {[%emt 00:00:36]} 74. f5 {[%clk 00:03:29]} {[%emt
00:00:25]} Kg7 {[%clk 00:06:04]} {[%emt 00:00:10]} 75. Kg5 {[%clk 00:03:53]}
{[%emt 00:00:06]} Rc1 {[%clk 00:06:26]} {[%emt 00:00:08]} 76. f6+ {[%clk
00:04:16]} {[%emt 00:00:08]} Kf8 {[%clk 00:06:50]} {[%emt 00:00:05]} 77. Rg3
{[%clk 00:04:27]} {[%emt 00:00:19]} Kf7 {[%clk 00:06:51]} {[%emt 00:00:29]} 78.
Bf5 {[%clk 00:03:50]} {[%emt 00:01:08]} Rc6 {[%clk 00:06:55]} {[%emt 00:00:24]}
79. Bg6+ {[%clk 00:04:05]} {[%emt 00:00:16]} Kg8 {[%clk 00:07:19]} {[%emt
00:00:05]} 80. Re3 {[%clk 00:04:14]} {[%emt 00:00:22]} Rc8 {[%clk 00:07:40]}
{[%emt 00:00:10]} 81. f7+ {[%clk 00:04:29]} {[%emt 00:00:14]} Kg7 {[%clk
00:08:06]} {[%emt 00:00:04]} 82. Re7 {[%clk 00:04:05]} {[%emt 00:00:54]} Rc5+
{[%clk 00:08:21]} {[%emt 00:00:14]} 83. Bf5 {[%clk 00:03:59]} {[%emt 00:00:37]}
Kf8 {[%clk 00:07:52]} {[%emt 00:00:59]} 84. Rd7 {[%clk 00:03:38]} {[%emt
00:00:52]} Rc6 {[%clk 00:06:57]} {[%emt 00:01:24]} 85. Be4 {[%clk 00:01:59]}
{[%emt 00:02:09]} Rc1 {[%clk 00:04:53]} {[%emt 00:02:34]} 86. Kf6 {[%clk
00:01:08]} {[%emt 00:01:21]} Rf1+ {[%clk 00:04:25]} {[%emt 00:00:58]} 87. Bf5
{[%clk 00:01:32]} {[%emt 00:00:07]} Rd1 {[%clk 00:04:23]} {[%emt 00:00:32]} 88.
Re7 {[%clk 00:01:22]} {[%emt 00:00:39]} Re1 {[%clk 00:04:04]} {[%emt 00:00:49]}
89. Re6 {[%clk 00:00:46]} {[%emt 00:01:06]} Re2 {[%clk 00:03:44]} {[%emt
00:00:50]} 90. Ra6 {[%clk 00:00:35]} {[%emt 00:00:41]} Ra2 {[%clk 00:03:23]}
{[%emt 00:00:51]} 91. Rb6 {[%clk 00:00:36]} {[%emt 00:00:29]} Rb2 {[%clk
00:03:07]} {[%emt 00:00:45]} 92. Rc6 {[%clk 00:01:04]} {[%emt 00:00:02]} Rc2
{[%clk 00:03:07]} {[%emt 00:00:30]} 93. Rd6 {[%clk 00:01:34]} Rd2 {[%clk
00:03:18]} {[%emt 00:00:19]} 94. Re6 {[%clk 00:02:03]} Re2 {[%clk 00:03:37]}
{[%emt 00:00:10]} 95. Ra6 {[%clk 00:02:31]} {[%emt 00:00:02]} Ra2 {[%clk
00:03:49]} {[%emt 00:00:18]} 96. Re6 {[%clk 00:01:28]} {[%emt 00:01:34]} Re2
{[%clk 00:04:08]} {[%emt 00:00:10]} 97. Bg6 {[%clk 00:01:41]} {[%emt 00:00:18]}
Rf2+ {[%clk 00:03:15]} {[%emt 00:01:23]} 98. Kg5 {[%clk 00:01:58]} {[%emt
00:00:12]} Rg2+ {[%clk 00:03:13]} {[%emt 00:00:34]} 99. Kf4 {[%clk 00:02:05]}
{[%emt 00:00:23]} Kg7 {[%clk 00:01:54]} {[%emt 00:01:49]} 100. Re8 {[%clk
00:01:53]} {[%emt 00:00:42]} Rf2+ {[%clk 00:01:06]} {[%emt 00:01:17]} 101. Ke4
{[%emt 00:01:37]} 1-0